fUST/lending_fUST_20240524
["ID","MTS","AMOUNT","RATE_DAILY","PERIOD"]
[327836217,1716533853947,-525.0,0.00033831,30]
[327836218,1716533853979,-525.0,0.00033831,30]
[327836219,1716533854008,-525.0,0.00033831,30]
[327836220,1716533854039,-525.0,0.00033831,30]
[327836221,1716533854074,-525.0,0.00033831,30]
[327836222,1716533854106,-525.0,0.00033831,30]
[327836223,1716533854133,-525.0,0.00033831,30]
[327836224,1716533854164,-525.0,0.00033831,30]
[327836225,1716533854194,-525.0,0.00033831,30]
[327836226,1716533854226,-525.0,0.00033831,30]
[327836227,1716533854254,-525.0,0.00033831,30]
[327836228,1716533854287,-525.0,0.00033831,30]
[327836229,1716533854318,-525.0,0.00033831,30]
[327836230,1716533854351,-525.0,0.00033831,30]
[327836231,1716533854382,-525.0,0.00033831,30]
[327836232,1716533854412,-525.0,0.00033831,30]
[327836233,1716533854441,-525.0,0.00033831,30]
[327836234,1716533854469,-525.0,0.00033831,30]
[327836235,1716533854501,-525.0,0.00033831,30]
[327836236,1716533854531,-525.0,0.00033831,30]
[327836237,1716533854561,-525.0,0.00033831,30]
[327836238,1716533854591,-525.0,0.00033831,30]
[327836239,1716533854619,-525.0,0.00033831,30]
[327836240,1716533854655,-525.0,0.00033831,30]
[327836241,1716533854687,-525.0,0.00033831,30]
[327836242,1716533854717,-525.0,0.00033831,30]
[327836243,1716533854749,-483.9054417,0.00033831,30]
[327836244,1716533854781,-525.0,0.00033831,30]
[327836245,1716533854813,-2501.36380027,0.00033831,120]
[327836246,1716533854843,-20521.5673003,0.00033831,30]
[327836247,1716533854874,-1000.0,0.00033831,120]
[327836248,1716533854905,-288.9,0.00033831,120]
[327836270,1716534331202,-287.10764086,0.00023535,2]
[327836282,1716534441115,-9806.34365205,0.00023535,2]
[327836283,1716534442324,-5693.70420569,0.00023535,2]
[327836284,1716534442344,-159.274182,0.00024384,2]
[327836285,1716534442364,-153.0,0.000244,2]
[327836286,1716534442385,-213.206406,0.00024556,2]
[327836287,1716534442406,-384.67521013,0.00024557,2]
[327836288,1716534442432,-154.98450155,0.00024655,2]
[327836289,1716534442453,-500.0,0.00024656,2]
[327836290,1716534442477,-500.0,0.00024656,2]
[327836291,1716534442499,-585.74539407,0.00024656,2]
[327836292,1716534442523,-500.0,0.00024656,2]
[327836293,1716534442549,-500.0,0.00024656,2]
[327836294,1716534442575,-500.0,0.00024656,2]
[327836295,1716534442598,-500.0,0.00024656,2]
[327836296,1716534442622,-622.47400292,0.00024656,2]
[327836297,1716534442645,-500.0,0.00024656,2]
[327836298,1716534442668,-500.0,0.00024656,2]
[327836299,1716534442691,-500.0,0.00024656,2]
[327836300,1716534442715,-500.0,0.00024656,2]
[327836301,1716534442739,-500.0,0.00024656,2]
[327836302,1716534442763,-500.0,0.00024656,2]
[327836303,1716534442784,-230.87702302,0.00024656,2]
[327836304,1716534442809,-500.0,0.00024656,2]
[327836305,1716534442835,-200.0,0.00024656,2]
[327836306,1716534442859,-500.0,0.00024656,2]
[327836307,1716534442883,-500.0,0.00024656,2]
[327836308,1716534442908,-500.0,0.00024656,2]
[327836309,1716534442932,-500.0,0.00024656,2]
[327836310,1716534442955,-500.0,0.00024656,2]
[327836311,1716534442978,-500.0,0.00024656,2]
[327836312,1716534443009,-500.0,0.00024656,2]
[327836313,1716534443034,-500.0,0.00024656,2]
[327836314,1716534443057,-500.0,0.00024656,2]
[327836315,1716534443080,-367.67886988,0.00024656,2]
[327836337,1716534634840,-151.0,0.00024326,5]
[327836338,1716534634849,-360.850529,0.00024384,2]
[327836340,1716534634858,-151.0,0.00024481,5]
[327836342,1716534634867,-151.0,0.00024635,5]
[327836344,1716534634877,-132.32113012,0.00024656,2]
[327836346,1716534634890,-457.15945483,0.00024656,2]
[327836476,1716534640287,-42.84054517,0.00024656,2]
[327836478,1716534640297,-500.0,0.00024656,2]
[327836480,1716534640306,-500.0,0.00024656,2]
[327836482,1716534640316,-500.0,0.00024656,2]
[327836484,1716534640325,-1640.88,0.00024656,4]
[327836486,1716534640334,-1640.88,0.00024656,4]
[327836488,1716534640344,-1640.88,0.00024656,4]
[327836490,1716534640354,-148.08945484,0.00024656,4]
[327836676,1716534642292,-186.55560525,0.00024556,2]
[327836678,1716534642302,-1492.79054516,0.00024656,4]
[327836680,1716534642311,-1640.88,0.00024656,4]
[327836682,1716534642321,-1640.88,0.00024656,4]
[327836683,1716534642330,-1640.88,0.00024656,4]
[327836685,1716534642339,-1640.88,0.00024656,4]
[327836687,1716534642349,-871.41476783,0.00024656,4]
[327836707,1716534643779,-31.90084899,0.00024656,4]
[327836724,1716534644553,-737.56438318,0.00024656,4]
[327836725,1716534644563,-1640.88,0.00024656,4]
[327836726,1716534644573,-1640.88,0.00024656,4]
[327836727,1716534644583,-1640.88,0.00024656,4]
[327836728,1716534644593,-1640.88,0.00024656,4]
[327836729,1716534644603,-1640.88,0.00024656,4]
[327836730,1716534644613,-1640.88,0.00024656,4]
[327836731,1716534644623,-1640.88,0.00024656,4]
[327836732,1716534644633,-1640.88,0.00024656,4]
[327836733,1716534644643,-1640.88,0.00024656,4]
[327836734,1716534644653,-3000.0,0.00024656,2]
[327836735,1716534644664,-3000.0,0.00024656,2]
[327836736,1716534644674,-150.0,0.00024657,2]
[327836737,1716534644684,-250.0,0.00024657,2]
[327836738,1716534644698,-500.092,0.00024657,2]
[327836739,1716534644709,-13157.05897244,0.00024657,11]
[327836740,1716534644720,-501.64759213,0.00024657,2]
[327836741,1716534644731,-500.0,0.00024657,2]
[327836742,1716534644741,-869.75,0.00024657,2]
[327836743,1716534644752,-452.77254413,0.00024657,2]
[327836744,1716534644762,-503.58302744,0.00024657,2]
[327836745,1716534644772,-502.5851373,0.00024657,2]
[327836746,1716534644783,-500.0,0.00024657,2]
[327836747,1716534644794,-1003.18423838,0.00024657,2]
[327836748,1716534644805,-505.34046447,0.00024657,2]
[327836749,1716534644816,-500.0,0.00024657,2]
[327836750,1716534644827,-500.0,0.00024657,2]
[327836751,1716534644837,-504.28051515,0.00024657,2]
[327836752,1716534644848,-501.89965623,0.00024657,2]
[327836753,1716534644860,-502.9878703,0.00024657,2]
[327836754,1716534644870,-502.03428204,0.00024657,2]
[327836755,1716534644881,-508.03861097,0.00024657,2]
[327836756,1716534644893,-500.0,0.00024657,2]
[327836757,1716534644908,-500.0,0.00024657,2]
[327836758,1716534644918,-500.0,0.00024657,2]
[327836759,1716534644929,-500.0,0.00024657,2]
[327836760,1716534644943,-500.0,0.00024657,2]
[327836761,1716534644953,-500.0,0.00024657,2]
[327836762,1716534644964,-500.0,0.00024657,2]
[327836763,1716534644975,-500.0,0.00024657,2]
[327836764,1716534644987,-500.0,0.00024657,2]
[327836765,1716534644997,-500.0,0.00024657,2]
[327836766,1716534645008,-648.5810658,0.00024657,2]
[327836767,1716534645019,-500.0,0.00024657,2]
[327836768,1716534645029,-500.0,0.00024657,2]
[327836769,1716534645040,-500.0,0.00024657,2]
[327836770,1716534645050,-500.0,0.00024657,2]
[327836771,1716534645061,-500.0,0.00024657,2]
[327836772,1716534645070,-500.0,0.00024657,2]
[327836773,1716534645081,-500.0,0.00024657,2]
[327836774,1716534645091,-815.86,0.00024657,2]
[327836775,1716534645101,-516.6843208,0.00024657,2]
[327836776,1716534645111,-500.0,0.00024657,2]
[327836777,1716534645121,-500.0,0.00024657,2]
[327836778,1716534645132,-500.0,0.00024657,2]
[327836779,1716534645142,-559.81,0.00024657,2]
[327836780,1716534645151,-513.4778909,0.00024657,2]
[327836781,1716534645162,-359.93,0.00024657,2]
[327836782,1716534645172,-500.0,0.00024657,2]
[327836783,1716534645182,-492.78864034,0.00024657,2]
[327836784,1716534645196,-502.43052117,0.00024657,2]
[327836785,1716534645206,-502.24234062,0.00024657,2]
[327836786,1716534645216,-500.0,0.00024657,2]
[327836787,1716534645225,-500.0,0.00024657,2]
[327836788,1716534645235,-500.0,0.00024657,2]
[327836789,1716534645245,-238.21082456,0.00024657,2]
[327836790,1716534645254,-500.0,0.00024657,2]
[327836791,1716534645264,-500.0,0.00024657,2]
[327836792,1716534645275,-500.0,0.00024657,2]
[327836793,1716534645284,-502.19088041,0.00024657,2]
[327836794,1716534645295,-503.94454405,0.00024657,2]
[327836795,1716534645305,-450.0,0.00024657,2]
[327836796,1716534645315,-500.29603651,0.00024657,2]
[327836797,1716534645324,-503.66039389,0.00024657,2]
[327836798,1716534645334,-484.61722138,0.00024657,2]
[327836799,1716534645343,-500.0,0.00024657,2]
[327836800,1716534645353,-500.64133167,0.00024657,2]
[327836801,1716534645362,-501.34490147,0.00024657,2]
[327836802,1716534645371,-500.0,0.00024657,2]
[327836803,1716534645380,-500.59723943,0.00024657,2]
[327836804,1716534645390,-500.0,0.00024657,2]
[327836805,1716534645399,-500.0,0.00024657,2]
[327836806,1716534645409,-485.55476961,0.00024657,2]
[327836807,1716534645418,-500.0,0.00024657,2]
[327836808,1716534645427,-500.0,0.00024657,2]
[327836809,1716534645436,-500.0,0.00024657,2]
[327836810,1716534645449,-394.53448083,0.00024657,2]
[327836811,1716534645458,-557.09,0.00024657,2]
[327836812,1716534645467,-500.0,0.00024657,2]
[327836813,1716534645476,-500.0,0.00024657,2]
[327836814,1716534645484,-504.52335729,0.00024657,2]
[327836815,1716534645494,-993.44,0.00024657,2]
[327836816,1716534645503,-500.0,0.00024657,2]
[327836817,1716534645512,-500.0,0.00024657,2]
[327836818,1716534645522,-670.54,0.00024657,2]
[327836819,1716534645531,-2280.85,0.00024657,2]
[327836820,1716534645540,-501.42092062,0.00024657,2]
[327836821,1716534645549,-510.59825689,0.00024657,2]
[327836822,1716534645559,-828.73,0.00024657,2]
[327836823,1716534645569,-500.0,0.00024657,2]
[327836824,1716534645578,-502.12190695,0.00024657,2]
[327836825,1716534645587,-2909.91,0.00024657,2]
[327836826,1716534645596,-503.47025359,0.00024657,2]
[327836827,1716534645606,-501.33689064,0.00024657,2]
[327836828,1716534645615,-500.0,0.00024657,2]
[327836829,1716534645625,-501.75393405,0.00024657,2]
[327836830,1716534645634,-1239.35,0.00024657,2]
[327836831,1716534645643,-500.0,0.00024657,2]
[327836832,1716534645652,-500.0,0.00024657,2]
[327836833,1716534645662,-914.61,0.00024657,2]
[327836834,1716534645671,-501.11747387,0.00024657,2]
[327836835,1716534645680,-506.4926663,0.00024657,2]
[327836836,1716534645691,-1334.92,0.00024657,2]
[327836837,1716534645700,-500.0,0.00024657,2]
[327836838,1716534645710,-501.57363646,0.00024657,2]
[327836839,1716534645718,-1860.92,0.00024657,2]
[327836840,1716534645727,-500.0,0.00024657,2]
[327836841,1716534645736,-500.0,0.00024657,2]
[327836842,1716534645745,-502.30891063,0.00024657,2]
[327836843,1716534645755,-501.11538888,0.00024657,2]
[327836844,1716534645764,-500.0,0.00024657,2]
[327836845,1716534645773,-630.14,0.00024657,2]
[327836846,1716534645782,-500.0,0.00024657,2]
[327836847,1716534645791,-500.0,0.00024657,2]
[327836848,1716534645800,-500.0,0.00024657,2]
[327836849,1716534645810,-500.0,0.00024657,2]
[327836850,1716534645819,-500.0,0.00024657,2]
[327836851,1716534645828,-500.0,0.00024657,2]
[327836852,1716534645837,-507.46519489,0.00024657,2]
[327836853,1716534645846,-635.49,0.00024657,2]
[327836854,1716534645856,-501.41625616,0.00024657,2]
[327836855,1716534645866,-303.40011434,0.00024657,2]
[327836856,1716534645875,-1130.2,0.00024657,2]
[327836857,1716534645885,-1455.72,0.00024657,2]
[327836858,1716534645900,-500.0,0.00024657,2]
[327836859,1716534645909,-500.0,0.00024657,2]
[327836860,1716534645918,-501.6148537,0.00024657,2]
[327836861,1716534645928,-503.37879094,0.00024657,2]
[327836862,1716534645940,-500.0,0.00024657,2]
[327836863,1716534645950,-537.2,0.00024657,2]
[327836864,1716534645959,-500.0,0.00024657,2]
[327836865,1716534645968,-500.0,0.00024657,2]
[327836866,1716534645978,-210.08102754,0.00024657,2]
[327836867,1716534645987,-504.54301685,0.00024657,2]
[327836868,1716534645996,-500.0,0.00024657,2]
[327836869,1716534646133,-872.95,0.00024657,2]
[327836870,1716534646143,-931.47,0.00024657,2]
[327836871,1716534646153,-969.22,0.00024657,2]
[327836872,1716534646162,-500.0,0.00024657,2]
[327836873,1716534646171,-503.82076623,0.00024657,2]
[327836874,1716534646181,-702.34,0.00024657,2]
[327836875,1716534646191,-505.60188445,0.00024657,2]
[327836876,1716534646200,-505.45185323,0.00024657,2]
[327836877,1716534646209,-500.0,0.00024657,2]
[327836878,1716534646218,-500.0,0.00024657,2]
[327836879,1716534646227,-2045.33,0.00024657,2]
[327836880,1716534646236,-1000.0,0.00024657,2]
[327836881,1716534646245,-533.39,0.00024657,2]
[327836882,1716534646254,-1690.07,0.00024657,2]
[327836883,1716534646263,-500.0,0.00024657,2]
[327836884,1716534646272,-535.2676481,0.00024657,2]
[327836885,1716534646281,-587.43,0.00024657,2]
[327836886,1716534646290,-504.05205543,0.00024657,2]
[327836887,1716534646299,-500.0,0.00024657,2]
[327836888,1716534646308,-656.13,0.00024657,2]
[327836889,1716534646316,-501.01603203,0.00024657,2]
[327836890,1716534646325,-500.0,0.00024657,2]
[327836891,1716534646335,-511.10603205,0.00024657,2]
[327836892,1716534646343,-500.0,0.00024657,2]
[327836893,1716534646352,-500.0,0.00024657,2]
[327836894,1716534646362,-2633.35,0.00024657,2]
[327836895,1716534646371,-500.0,0.00024657,2]
[327836896,1716534646380,-500.0,0.00024657,2]
[327836897,1716534646389,-513.29093788,0.00024657,2]
[327836898,1716534646398,-1186.25,0.00024657,2]
[327836899,1716534646407,-500.0,0.00024657,2]
[327836900,1716534646416,-502.99806921,0.00024657,2]
[327836901,1716534646425,-666.89,0.00024657,2]
[327836902,1716534646435,-1000.0,0.00024657,2]
[327836903,1716534646446,-1000.0,0.00024657,3]
[327836904,1716534646455,-755.67529934,0.00024657,4]
[327836905,1716534646464,-502.30623267,0.00024657,2]
[327836906,1716534646473,-504.96487551,0.00024657,2]
[327836907,1716534646482,-1956.94,0.00024657,2]
[327836908,1716534646491,-502.12542061,0.00024657,2]
[327836909,1716534646501,-502.00817071,0.00024657,2]
[327836910,1716534646511,-977.72,0.00024657,2]
[327836911,1716534646519,-497.67528693,0.00024657,2]
[327836912,1716534646529,-500.0,0.00024657,2]
[327836913,1716534646538,-500.0,0.00024657,2]
[327836914,1716534646547,-501.73581946,0.00024657,2]
[327836915,1716534646556,-501.70935915,0.00024657,2]
[327836916,1716534646565,-504.53701194,0.00024657,2]
[327836917,1716534646574,-675.22,0.00024657,2]
[327836918,1716534646584,-500.0,0.00024657,2]
[327836919,1716534646594,-502.47490308,0.00024657,2]
[327836920,1716534646603,-500.0,0.00024657,2]
[327836921,1716534646613,-502.32604212,0.00024657,2]
[327836922,1716534646622,-500.0,0.00024657,2]
[327836923,1716534646631,-501.13808813,0.00024657,2]
[327836924,1716534646640,-509.74096775,0.00024657,2]
[327836925,1716534646651,-500.0,0.00024657,2]
[327836926,1716534646660,-501.95600799,0.00024657,2]
[327836927,1716534646669,-500.0,0.00024657,2]
[327836928,1716534646679,-520.51838379,0.00024657,2]
[327836929,1716534646688,-504.35276039,0.00024657,2]
[327836930,1716534646698,-1946.54,0.00024657,2]
[327836931,1716534646708,-2147.91,0.00024657,2]
[327836932,1716534646718,-503.8320705,0.00024657,2]
[327836933,1716534646728,-500.0,0.00024657,2]
[327836934,1716534646737,-500.0,0.00024657,2]
[327836935,1716534646747,-500.0,0.00024657,2]
[327836936,1716534646756,-2035.36,0.00024657,2]
[327836937,1716534646766,-501.74869448,0.00024657,2]
[327836938,1716534646775,-503.65308904,0.00024657,2]
[327836939,1716534646784,-500.0,0.00024657,2]
[327836940,1716534646794,-500.0,0.00024657,2]
[327836941,1716534646803,-700.91,0.00024657,2]
[327836942,1716534646812,-332.52003069,0.00024657,2]
[327836943,1716534646821,-500.0,0.00024657,2]
[327836944,1716534646831,-500.0,0.00024657,2]
[327836945,1716534646841,-503.52,0.00024657,2]
[327836946,1716534646850,-737.47,0.00024657,2]
[327836947,1716534646859,-500.0,0.00024657,2]
[327836948,1716534646869,-177.23891983,0.00024657,2]
[327836949,1716534646878,-501.34163853,0.00024657,2]
[327836950,1716534646888,-501.71352665,0.00024657,2]
[327836951,1716534646900,-500.0,0.00024657,2]
[327836952,1716534646910,-502.02205095,0.00024657,2]
[327836953,1716534646919,-500.0,0.00024657,2]
[327836954,1716534646928,-503.63634999,0.00024657,2]
[327836955,1716534646938,-501.87423761,0.00024657,2]
[327836956,1716534646948,-500.0,0.00024657,2]
[327836957,1716534646957,-501.84963433,0.00024657,2]
[327836958,1716534646966,-502.3685019,0.00024657,2]
[327836959,1716534646979,-2324.76,0.00024657,2]
[327836960,1716534646988,-500.0,0.00024657,2]
[327836961,1716534646998,-501.20756072,0.00024657,2]
[327836962,1716534647008,-500.0,0.00024657,2]
[327836963,1716534647018,-805.35,0.00024657,2]
[327836964,1716534647027,-3762.52,0.00024657,2]
[327836965,1716534647036,-509.4215208,0.00024657,2]
[327836966,1716534647045,-501.50868282,0.00024657,2]
[327836967,1716534647056,-500.0,0.00024657,2]
[327836968,1716534647065,-500.0,0.00024657,2]
[327836969,1716534647074,-500.0,0.00024657,2]
[327836970,1716534647082,-1591.35,0.00024657,2]
[327836971,1716534647091,-502.65111978,0.00024657,2]
[327836972,1716534647100,-500.0,0.00024657,2]
[327836973,1716534647110,-500.0,0.00024657,2]
[327836974,1716534647119,-500.0,0.00024657,2]
[327836975,1716534647128,-500.0,0.00024657,2]
[327836976,1716534647137,-503.36784612,0.00024657,2]
[327836977,1716534647146,-500.0,0.00024657,2]
[327836978,1716534647155,-350.00437341,0.00024657,2]
[327836979,1716534647165,-896.38,0.00024657,2]
[327836980,1716534647174,-500.0,0.00024657,2]
[327836981,1716534647183,-500.0,0.00024657,2]
[327836982,1716534647194,-500.0,0.00024657,2]
[327836983,1716534647203,-504.49444119,0.00024657,2]
[327836984,1716534647215,-484.42704628,0.00024657,2]
[327836985,1716534647224,-502.54701367,0.00024657,2]
[327836986,1716534647234,-578.61,0.00024657,2]
[327836987,1716534647245,-562.74000001,0.00024657,2]
[327836988,1716534647255,-3188.6,0.00024657,2]
[327836989,1716534647265,-502.62388334,0.00024657,2]
[327836990,1716534647275,-501.38526598,0.00024657,2]
[327836991,1716534647284,-503.42855984,0.00024657,2]
[327836992,1716534647293,-1493.57,0.00024657,2]
[327836993,1716534647302,-259.75951232,0.00024657,2]
[327836994,1716534647311,-1343.64,0.00024657,2]
[327836995,1716534647320,-501.02333107,0.00024657,2]
[327836996,1716534647331,-504.50962715,0.00024657,2]
[327836997,1716534647340,-500.0,0.00024657,2]
[327836998,1716534647350,-501.07054296,0.00024657,2]
[327836999,1716534647360,-500.0,0.00024657,2]
[327837000,1716534647370,-501.49696494,0.00024657,2]
[327837001,1716534647379,-553.49,0.00024657,2]
[327837002,1716534647388,-500.0,0.00024657,2]
[327837003,1716534647397,-1211.42,0.00024657,2]
[327837004,1716534647407,-602.23,0.00024657,2]
[327837005,1716534647416,-500.0,0.00024657,2]
[327837006,1716534647426,-893.11,0.00024657,2]
[327837007,1716534647435,-500.0,0.00024657,2]
[327837008,1716534647445,-503.86463509,0.00024657,2]
[327837009,1716534647454,-502.87177693,0.00024657,2]
[327837010,1716534647463,-500.0,0.00024657,2]
[327837011,1716534647472,-369.86342561,0.00024657,2]
[327837012,1716534647482,-500.0,0.00024657,2]
[327837013,1716534647491,-502.20954317,0.00024657,2]
[327837014,1716534647501,-2674.62,0.00024657,2]
[327837015,1716534647512,-500.0,0.00024657,2]
[327837016,1716534647521,-501.17533402,0.00024657,2]
[327837017,1716534647531,-500.0,0.00024657,2]
[327837018,1716534647540,-500.0,0.00024657,2]
[327837019,1716534647549,-500.0,0.00024657,3]
[327837020,1716534647559,-500.0,0.00024657,4]
[327837021,1716534647568,-500.0,0.00024657,5]
[327837022,1716534647578,-500.0,0.00024657,2]
[327837023,1716534647588,-500.0,0.00024657,6]
[327837024,1716534647597,-500.0,0.00024657,2]
[327837025,1716534647607,-500.0,0.00024657,7]
[327837026,1716534647616,-500.0,0.00024657,8]
[327837027,1716534647626,-500.0,0.00024657,9]
[327837028,1716534647636,-500.0,0.00024657,10]
[327837030,1716534647646,-500.0,0.00024657,11]
[327837032,1716534647656,-500.0,0.00024657,2]
[327837035,1716534647665,-500.0,0.00024657,12]
[327837039,1716534647675,-500.0,0.00024657,13]
[327837042,1716534647684,-500.0,0.00024657,14]
[327837044,1716534647695,-500.0,0.00024657,15]
[327837046,1716534647704,-708.17,0.00024657,2]
[327837047,1716534647713,-500.0,0.00024657,2]
[327837048,1716534647723,-1035.2,0.00024657,2]
[327837049,1716534647733,-500.0,0.00024657,2]
[327837050,1716534647743,-735.9,0.00024657,2]
[327837051,1716534647752,-8128.7,0.00024657,2]
[327837052,1716534647762,-5359.68,0.00024657,2]
[327837053,1716534647772,-508.35493883,0.00024657,2]
[327837054,1716534647783,-500.0,0.00024657,2]
[327837055,1716534647792,-500.0,0.00024657,2]
[327837056,1716534647802,-500.0,0.00024657,2]
[327837058,1716534647812,-1375.05,0.00024657,2]
[327837059,1716534647822,-500.0,0.00024657,2]
[327837061,1716534647832,-2611.30465724,0.00024657,2]
[327837063,1716534647856,-125.84534276,0.00024657,2]
[327837064,1716534647866,-500.0,0.00024657,2]
[327837065,1716534647876,-6872.24397922,0.00024657,2]
[327837067,1716534758925,1000.0,0.00028,120]
[327837070,1716535010372,6998.28,0.00019,2]
[327837073,1716535467813,273.37336231,9.9e-05,2]
[327837074,1716535476620,273.37336231,9.9e-05,2]
[327837075,1716535485953,273.37336231,9.9e-05,2]
[327837076,1716535494261,273.37336231,9.9e-05,2]
[327837077,1716535503192,273.37336231,9.9e-05,2]
[327837078,1716535512356,273.37336231,9.9e-05,2]
[327837079,1716535521220,273.37336231,9.9e-05,2]
[327837080,1716535529738,273.37336231,9.9e-05,2]
[327837081,1716535539322,273.37336231,9.9e-05,2]
[327837082,1716535548079,273.37336231,9.9e-05,2]
[327837083,1716535557003,273.37336231,9.9e-05,2]
[327837084,1716535566750,273.37336231,9.9e-05,2]
[327837085,1716535576151,219.87951993,9.9e-05,2]
[327837086,1716535591413,150.0,0.000189,2]
[327837087,1716535632158,-166.666666,0.00021918,2]
[327837088,1716535632186,-6575.0536158,0.00022179,2]
[327837089,1716535632219,-166.666666,0.00022891,2]
[327837090,1716535632258,-197.090936,0.00023276,2]
[327837091,1716535632293,-166.666666,0.00023864,2]
[327837092,1716535632322,-997.5,0.00024,2]
[327837093,1716535632347,-16885.4654502,0.00024,2]
[327837101,1716535832670,1000.0,0.00022,2]
[327837116,1716535835361,-539.24230124,0.00023,2]
[327837121,1716535835372,-460.75769975,0.00023,2]
[327837123,1716535835381,-636.45700022,0.00023551,2]
[327837126,1716535835391,-3119.05223253,0.00024,2]
[327837137,1716535835442,-325.14397417,0.00024,2]
[327837139,1716535835453,-462.228,0.00024,2]
[327837324,1716535840704,-13731.59811195,0.00024,2]
[327837326,1716535840721,-1000.44654106,0.00024,2]
[327837328,1716535840733,-3857.6356605,0.00024,2]
[327837329,1716535841056,-280.86267126,0.00024,2]
[327837332,1716535841068,-2102.56735833,0.00024,2]
[327837333,1716535841077,-1261.66040805,0.00024,2]
[327837334,1716535841086,-154.39169095,0.00024084,2]
[327837336,1716535841096,-206.58009315,0.00024184,2]
[327837338,1716535841105,-206.58009314,0.00024277,2]
[327837340,1716535841115,-300.12988579,0.0002431,2]
[327837342,1716535841123,-151.0,0.00024326,5]
[327837344,1716535841133,-206.58009314,0.00024371,2]
[327837346,1716535841142,-406.135897,0.00024384,2]
[327837347,1716535841152,-28383.71931845,0.000244,2]
[327837348,1716535841161,-377.43594963,0.0002441,2]
[327837349,1716535841171,-206.58009314,0.00024464,2]
[327837350,1716535841181,-151.0,0.00024481,5]
[327837351,1716535841190,-4226.56801723,0.00024518,2]
[327837352,1716535841200,-417.57091557,0.00024554,2]
[327837353,1716535841210,-1066.24462683,0.00024557,2]
[327837354,1716535841222,-206.58009314,0.00024557,2]
[327837355,1716535841231,-281.0,0.000246,2]
[327837356,1716535841240,-1614.41001378,0.00024629,2]
[327837357,1716535841250,-151.0,0.00024635,5]
[327837358,1716535841264,-177.1,0.00024643,3]
[327837359,1716535841277,-531.31,0.00024643,3]
[327837360,1716535841295,-500.0,0.00024652,2]
[327837361,1716535841304,-500.0,0.00024652,2]
[327837362,1716535841313,-500.0,0.00024652,2]
[327837363,1716535841322,-537.70314742,0.00024652,2]
[327837364,1716535841332,-500.0,0.00024652,2]
[327837365,1716535841346,-500.0,0.00024652,2]
[327837366,1716535841358,-500.0,0.00024652,2]
[327837367,1716535841372,-498.10126164,0.00024652,2]
[327837368,1716535841381,-500.0,0.00024652,2]
[327837369,1716535841390,-334.98177554,0.00024652,2]
[327837370,1716535841401,-538.74117487,0.00024652,2]
[327837371,1716535841410,-500.0,0.00024652,2]
[327837372,1716535841420,-500.0,0.00024652,2]
[327837373,1716535841430,-500.0,0.00024652,2]
[327837375,1716535841439,-500.0,0.00024652,2]
[327837376,1716535841449,-500.0,0.00024652,2]
[327837377,1716535841458,-500.0,0.00024652,2]
[327837378,1716535841468,-301.97375895,0.00024652,2]
[327837379,1716535841478,-500.0,0.00024652,2]
[327837380,1716535841486,-500.0,0.00024652,2]
[327837381,1716535841496,-500.0,0.00024652,2]
[327837382,1716535841506,-500.0,0.00024652,2]
[327837383,1716535841515,-500.0,0.00024652,2]
[327837384,1716535841524,-500.0,0.00024652,2]
[327837385,1716535841534,-500.0,0.00024652,2]
[327837386,1716535841543,-500.0,0.00024652,2]
[327837387,1716535841552,-500.0,0.00024652,2]